[Event "CCT Chessable Masters Place D-II 2024"]
[Site "Online"]
[Date "2024.02.01"]
[Round "1"]
[White "Micki-taryan"]
[Black "KuzubovYuriy"]
[Result "1-0"]
[ECO "D36"]
[WhiteElo "2626"]
[BlackElo "2698"]
[Annotator "ChessBase"]
[PlyCount "105"]
[EventDate "2024.01.12"]
[EventType "k.o."]
[EventCountry "NET"]
[SourceTitle "playchess.com"]
[Source "ChessBase"]
[SourceQuality "1"]
[TimeControl "600+2"]

1. d4 {[%emt 0:00:06]} Nf6 {[%emt 0:02:11]} 2. c4 {[%emt 0:00:03]} e6 {[%emt 0:00:03]} 3. Nf3 {[%emt 0:00:03]} d5 {[%emt 0:00:02]} 4. Nc3 {[%emt 0:00:02]} Nbd7 {[%emt 0:00:04]} 5. cxd5 {[%emt 0:00:04]} exd5 {[%emt 0:00:03]} 6. Qc2 {[%emt 0:00:02]} c6 {[%emt 0:00:05]} 7. Bg5 {[%emt 0:00:04]} Be7 {[%emt 0:00:03]} 8. e3 {[%emt 0:00:03]} Nh5 {[%emt 0:00:04]} 9. Bxe7 {[%emt 0:00:03]} Qxe7 {[%emt 0:00:02]} 10. Be2 {[%emt 0:00:03]} g6 {[%emt 0:00:06]} 11. O-O {[%emt 0:00:14]} O-O {[%emt 0:00:03]} 12. a3 {[%emt 0:00:08]} a5 {[%emt 0:00:04]} 13. Rac1 {[%emt 0:00:04]} Nb6 {[%emt 0:00:21]} 14. Qb3 {[%emt 0:00:04]} Qd8 {[%emt 0:00:05]} 15. Ne5 {[%emt 0:00:04]} Ng7 {[%emt 0:00:04]} 16. Rfd1 {[%emt 0:00:10]} Bf5 {[%emt 0:00:11]} 17. Bf1 {[%emt 0:00:16]} Re8 {[%emt 0:00:12]} 18. Ne2 {[%emt 0:00:16]} Rb8 {[%emt 0:00:15]} 19. Nf4 {[%emt 0:00:08]} Nd7 {[%emt 0:00:09]} 20. Ned3 {[%emt 0:00:03]} Ne6 {[%emt 0:00:09]} 21. Ne2 {[%emt 0:00:03]} h5 {[%emt 0:00:06]} 22. Qc3 {[%emt 0:00:12]} Nf6 {[%emt 0:00:09]} 23. Ne5 {[%emt 0:00:07]} Ne4 {[%emt 0:00:04]} 24. Qe1 {[%emt 0:00:02]} f6 {[%emt 0:00:06]} 25. Nd3 {[%emt 0:00:03]} Ng7 {[%emt 0:00:08]} 26. b4 {[%emt 0:00:15]} Nd6 {[%emt 0:00:10]} 27. Nc5 {[%emt 0:00:10]} b6 {[%emt 0:00:13]} 28. Nb3 {[%emt 0:00:15]} a4 {[%emt 0:00:10]} 29. Nd2 {[%emt 0:00:10]} Rc8 {[%emt 0:00:09]} 30. h3 {[%emt 0:00:11]} h4 {[%emt 0:00:07]} 31. Nf4 {[%emt 0:00:04]} b5 {[%emt 0:00:09]} 32. Bd3 {[%emt 0:00:14]} Bxd3 {[%emt 0:00:04]} 33. Nxd3 {[%emt 0:00:02]} Rc7 {[%emt 0:00:06]} 34. Qe2 {[%emt 0:00:07]} g5 {[%emt 0:00:20]} 35. Qf3 {[%emt 0:00:04]} Kh7 {[%emt 0:00:14]} 36. Nc5 {[%emt 0:00:04]} Rf7 {[%emt 0:00:23]} 37. e4 {[%emt 0:00:07]} dxe4 {[%emt 0:00:17]} 38. Ndxe4 {[%emt 0:00:02]} Nxe4 {[%emt 0:00:20]} 39. Nxe4 {[%emt 0:00:02]} Re6 {[%emt 0:00:04]} 40. Nxg5+ {[%emt 0:00:09]} fxg5 {[%emt 0:00:04]} 41. Qxf7 {[%emt 0:00:02]} Rf6 {[%emt 0:00:07]} 42. Qa2 {[%emt 0:00:05]} g4 {[%emt 0:00:12]} 43. hxg4 {[%emt 0:00:24]} h3 {[%emt 0:00:04]} 44. Rc3 {[%emt 0:00:18]} hxg2 {[%emt 0:00:10]} 45. Rh3+ {[%emt 0:00:05]} Kg6 {[%emt 0:00:03]} 46. d5 {[%emt 0:00:16]} Rd6 {[%emt 0:00:36]} 47. Qc2+ {[%emt 0:00:29]} Kf7 {[%emt 0:00:05]} 48. Rdd3 {[%emt 0:00:06]} Rxd5 {[%emt 0:00:13]} 49. Rdf3+ {[%emt 0:00:05]} Ke7 {[%emt 0:00:04]} 50. Rh7 {[%emt 0:00:11]} Rg5 {[%emt 0:00:15]} 51. Qe4+ {[%emt 0:00:04]} Kd6 {[%emt 0:00:13]} 52. Rd3+ {[%emt 0:00:05]} Rd5 {[%emt 0:00:04]} 53. Rxg7 {[%emt 0:00:07]} 1-0

[Event "CCT Chessable Masters Place D-II 2024"]
[Site "Online"]
[Date "2024.02.01"]
[Round "1"]
[White "Rakhmanov_Aleksandr"]
[Black "Vokhidov, Shamsiddin"]
[Result "0-1"]
[ECO "A20"]
[WhiteElo "2622"]
[BlackElo "2596"]
[Annotator "ChessBase"]
[PlyCount "104"]
[EventDate "2024.01.12"]
[EventType "k.o."]
[EventCountry "NET"]
[SourceTitle "playchess.com"]
[Source "ChessBase"]
[SourceQuality "1"]
[TimeControl "600+2"]

1. c4 {[%emt 0:00:04]} e5 {[%emt 0:00:05]} 2. Nf3 {[%emt 0:00:02]} e4 {[%emt 0:00:01]} 3. Nd4 {[%emt 0:00:01]} Nc6 {[%emt 0:00:02]} 4. e3 {[%emt 0:00:04]} Nxd4 {[%emt 0:00:02]} 5. exd4 {[%emt 0:00:00]} Qf6 {[%emt 0:00:01]} 6. Nc3 {[%emt 0:00:03]} Qxd4 {[%emt 0:00:03]} 7. Be2 {[%emt 0:00:00]} Nf6 {[%emt 0:00:11]} 8. O-O {[%emt 0:00:07]} Bb4 {[%emt 0:02:34]} 9. Nb5 {[%emt 0:01:40]} Qb6 {[%emt 0:00:02]} 10. a3 {[%emt 0:00:13]} Be7 {[%emt 0:00:07]} 11. d3 {[%emt 0:00:40]} c6 {[%emt 0:00:06]} 12. Be3 {[%emt 0:00:10]} Qd8 {[%emt 0:00:03]} 13. Nc3 {[%emt 0:00:06]} d5 {[%emt 0:00:10]} 14. cxd5 {[%emt 0:00:06]} Nxd5 {[%emt 0:00:02]} 15. Nxd5 {[%emt 0:00:07]} Qxd5 {[%emt 0:00:00]} 16. dxe4 {[%emt 0:01:09]} Qxe4 {[%emt 0:00:00]} 17. Bd3 {[%emt 0:00:14]} Qh4 {[%emt 0:00:12]} 18. Re1 {[%emt 0:00:07]} Be6 {[%emt 0:00:05]} 19. g3 {[%emt 0:00:16]} Qf6 {[%emt 0:00:06]} 20. Qc2 {[%emt 0:00:14]} h6 {[%emt 0:00:13]} 21. Rad1 {[%emt 0:00:09]} O-O {[%emt 0:00:05]} 22. Bd4 {[%emt 0:00:11]} Qf3 {[%emt 0:00:07]} 23. Re3 {[%emt 0:00:32]} Qh5 {[%emt 0:00:11]} 24. Re5 {[%emt 0:00:35]} Qf3 {[%emt 0:00:54]} 25. Bh7+ {[%emt 0:01:24]} Kh8 {[%emt 0:00:20]} 26. Be4 {[%emt 0:01:07]} Qg4 {[%emt 0:02:10]} 27. f3 {[%emt 0:00:04]} Qh3 {[%emt 0:00:02]} 28. g4 {[%emt 0:00:03]} Bg5 {[%emt 0:00:33]} 29. Qf2 {[%emt 0:01:25]} Rad8 {[%emt 0:00:15]} 30. Rf1 {[%emt 0:00:06]} Bf6 {[%emt 0:00:24]} 31. Bc3 {[%emt 0:00:02]} Bxe5 {[%emt 0:00:10]} 32. Bxe5 {[%emt 0:00:00]} f5 {[%emt 0:00:06]} 33. Bb1 {[%emt 0:00:02]} fxg4 {[%emt 0:00:10]} 34. Qc2 {[%emt 0:00:03]} Bf5 {[%emt 0:00:05]} 35. Qc3 {[%emt 0:00:01]} Rd7 {[%emt 0:00:04]} 36. Qc5 {[%emt 0:00:05]} Rdf7 {[%emt 0:00:11]} 37. Ba2 {[%emt 0:00:01]} gxf3 {[%emt 0:00:06]} 38. Rf2 {[%emt 0:00:01]} Rd8 {[%emt 0:00:12]} 39. Bb3 {[%emt 0:00:02]} Rfd7 {[%emt 0:00:09]} 40. Qc1 {[%emt 0:00:03]} Kh7 {[%emt 0:00:21]} 41. Kh1 {[%emt 0:00:02]} Be4 {[%emt 0:00:04]} 42. Bc3 {[%emt 0:00:02]} Qf5 {[%emt 0:00:07]} 43. Qg1 {[%emt 0:00:01]} Qg6 {[%emt 0:00:07]} 44. Qe1 {[%emt 0:00:01]} b6 {[%emt 0:00:12]} 45. h3 {[%emt 0:00:01]} Re8 {[%emt 0:00:07]} 46. Kh2 {[%emt 0:00:03]} Bd5 {[%emt 0:00:02]} 47. Bc2 {[%emt 0:00:02]} Rxe1 {[%emt 0:00:04]} 48. Bxg6+ {[%emt 0:00:01]} Kxg6 {[%emt 0:00:00]} 49. Bxe1 {[%emt 0:00:01]} Kf5 {[%emt 0:00:01]} 50. Bc3 {[%emt 0:00:00]} g5 {[%emt 0:00:01]} 51. Kg3 {[%emt 0:00:01]} h5 {[%emt 0:00:01]} 52. Rd2 {[%emt 0:00:00]} h4+ {[%emt 0:00:01]} 0-1

[Event "CCT Chessable Masters Place D-II 2024"]
[Site "Online"]
[Date "2024.02.01"]
[Round "1"]
[White "Antipov, Mikhail Al."]
[Black "shimastream"]
[Result "0-1"]
[ECO "B13"]
[WhiteElo "2604"]
[BlackElo "2621"]
[Annotator "ChessBase"]
[PlyCount "78"]
[EventDate "2024.01.12"]
[EventType "k.o."]
[EventCountry "NET"]
[SourceTitle "playchess.com"]
[Source "ChessBase"]
[SourceQuality "1"]
[TimeControl "600+2"]

1. e4 {[%emt 0:00:02]} c6 {[%emt 0:00:15]} 2. d4 {[%emt 0:00:03]} d5 {[%emt 0:00:01]} 3. exd5 {[%emt 0:00:00]} cxd5 {[%emt 0:00:00]} 4. Bd3 {[%emt 0:00:01]} Nc6 {[%emt 0:00:02]} 5. c3 {[%emt 0:00:01]} Qc7 {[%emt 0:00:02]} 6. h3 {[%emt 0:00:02]} e6 {[%emt 0:00:05]} 7. Nf3 {[%emt 0:00:02]} Bd6 {[%emt 0:00:02]} 8. O-O {[%emt 0:00:01]} Nf6 {[%emt 0:00:02]} 9. Re1 {[%emt 0:00:03]} b6 {[%emt 0:00:02]} 10. Qe2 {[%emt 0:00:18]} Bb7 {[%emt 0:00:04]} 11. Nbd2 {[%emt 0:00:18]} O-O {[%emt 0:00:02]} 12. Ne5 {[%emt 0:00:05]} Rae8 {[%emt 0:00:01]} 13. h4 {[%emt 0:01:39]} Kh8 {[%emt 0:02:15]} 14. a4 {[%emt 0:01:53]} a5 {[%emt 0:00:03]} 15. Rb1 {[%emt 0:00:15]} Ba8 {[%emt 0:00:23]} 16. b3 {[%emt 0:00:14]} Ne7 {[%emt 0:01:10]} 17. Bb2 {[%emt 0:00:13]} g6 {[%emt 0:01:02]} 18. c4 {[%emt 0:00:42]} Bb4 {[%emt 0:00:10]} 19. Rbd1 {[%emt 0:00:15]} Nh5 {[%emt 0:00:19]} 20. Qg4 {[%emt 0:00:19]} Nf5 {[%emt 0:00:20]} 21. c5 {[%emt 0:00:14]} bxc5 {[%emt 0:00:52]} 22. dxc5 {[%emt 0:00:43]} f6 {[%emt 0:00:01]} 23. Bb5 {[%emt 0:00:49]} Re7 {[%emt 0:00:33]} 24. c6 {[%emt 0:00:08]} Kg7 {[%emt 0:01:24]} 25. Re2 {[%emt 0:00:24]} fxe5 {[%emt 0:00:17]} 26. Bxe5+ {[%emt 0:00:02]} Nf6 {[%emt 0:00:01]} 27. Qxb4 {[%emt 0:00:58]} axb4 {[%emt 0:00:01]} 28. Bxc7 {[%emt 0:00:00]} Rxc7 {[%emt 0:00:01]} 29. Rxe6 {[%emt 0:00:00]} Nd4 {[%emt 0:00:03]} 30. Rd6 {[%emt 0:00:02]} Bxc6 {[%emt 0:00:22]} 31. Rc1 {[%emt 0:00:01]} Rfc8 {[%emt 0:00:02]} 32. Ba6 {[%emt 0:00:22]} Bb7 {[%emt 0:00:01]} 33. Rxc7+ {[%emt 0:00:08]} Rxc7 {[%emt 0:00:00]} 34. Bxb7 {[%emt 0:00:01]} Rxb7 {[%emt 0:00:01]} 35. a5 {[%emt 0:00:00]} Rc7 {[%emt 0:00:16]} 36. a6 {[%emt 0:00:03]} Rc1+ {[%emt 0:00:01]} 37. Kh2 {[%emt 0:00:01]} Ng4+ {[%emt 0:00:05]} 38. Kh3 {[%emt 0:00:08]} Nxf2+ {[%emt 0:00:02]} 39. Kh2 {[%emt 0:00:02]} Rh1+ {[%emt 0:00:12]} 0-1

[Event "CCT Chessable Masters Place D-II 2024"]
[Site "Online"]
[Date "2024.02.01"]
[Round "1"]
[White "Vokhidov, Shamsiddin"]
[Black "Rakhmanov_Aleksandr"]
[Result "1-0"]
[ECO "B01"]
[WhiteElo "2596"]
[BlackElo "2630"]
[Annotator "ChessBase"]
[PlyCount "99"]
[EventDate "2024.01.12"]
[EventType "k.o."]
[EventCountry "NET"]
[SourceTitle "playchess.com"]
[Source "ChessBase"]
[SourceQuality "1"]
[TimeControl "600+2"]

1. e4 {[%emt 0:00:05]} d5 {[%emt 0:00:08]} 2. exd5 {[%emt 0:00:02]} c6 {[%emt 0:00:00]} 3. dxc6 {[%emt 0:00:02]} Nxc6 {[%emt 0:00:01]} 4. Nf3 {[%emt 0:00:03]} e5 {[%emt 0:00:01]} 5. Nc3 {[%emt 0:00:03]} Bc5 {[%emt 0:00:46]} 6. Bb5 {[%emt 0:00:06]} Nge7 {[%emt 0:00:01]} 7. Nxe5 {[%emt 0:01:11]} Bxf2+ {[%emt 0:00:03]} 8. Kxf2 {[%emt 0:00:03]} Qd4+ {[%emt 0:00:00]} 9. Ke1 {[%emt 0:00:35]} Qxe5+ {[%emt 0:00:01]} 10. Qe2 {[%emt 0:00:02]} Qd6 {[%emt 0:00:01]} 11. Bxc6+ {[%emt 0:00:30]} Qxc6 {[%emt 0:00:59]} 12. Qb5 {[%emt 0:00:14]} O-O {[%emt 0:00:10]} 13. Qxc6 {[%emt 0:00:01]} Nxc6 {[%emt 0:00:00]} 14. d3 {[%emt 0:00:09]} Re8+ {[%emt 0:00:23]} 15. Kd2 {[%emt 0:00:02]} Nd4 {[%emt 0:00:03]} 16. Rf1 {[%emt 0:00:23]} Bf5 {[%emt 0:00:40]} 17. b3 {[%emt 0:00:38]} Bd7 {[%emt 0:01:43]} 18. Bb2 {[%emt 0:00:24]} Bc6 {[%emt 0:00:02]} 19. Ne4 {[%emt 0:00:36]} Bxe4 {[%emt 0:02:44]} 20. Bxd4 {[%emt 0:00:03]} Bxg2 {[%emt 0:00:03]} 21. Rg1 {[%emt 0:00:03]} Bf3 {[%emt 0:00:03]} 22. Rxg7+ {[%emt 0:00:08]} Kf8 {[%emt 0:00:01]} 23. Rf1 {[%emt 0:00:50]} Re2+ {[%emt 0:00:20]} 24. Kc1 {[%emt 0:00:02]} Bd5 {[%emt 0:00:35]} 25. Rxh7 {[%emt 0:00:21]} Ke7 {[%emt 0:00:02]} 26. Rf2 {[%emt 0:00:21]} Re1+ {[%emt 0:00:04]} 27. Kd2 {[%emt 0:00:06]} Rh1 {[%emt 0:00:06]} 28. h4 {[%emt 0:00:06]} Rg8 {[%emt 0:00:03]} 29. Bxa7 {[%emt 0:00:12]} Be6 {[%emt 0:00:11]} 30. Bd4 {[%emt 0:00:17]} Rg4 {[%emt 0:00:09]} 31. Bf6+ {[%emt 0:00:04]} Kd7 {[%emt 0:00:02]} 32. h5 {[%emt 0:00:02]} Rgg1 {[%emt 0:00:05]} 33. Rh8 {[%emt 0:00:06]} b5 {[%emt 0:00:01]} 34. Kc3 {[%emt 0:00:04]} Rg4 {[%emt 0:00:03]} 35. a3 {[%emt 0:00:03]} Kc6 {[%emt 0:00:01]} 36. h6 {[%emt 0:00:05]} Rg6 {[%emt 0:00:04]} 37. Bg7 {[%emt 0:00:07]} Rg5 {[%emt 0:00:01]} 38. Kb2 {[%emt 0:00:05]} Rgg1 {[%emt 0:00:06]} 39. Rd8 {[%emt 0:00:04]} Ra1 {[%emt 0:00:24]} 40. Rd4 {[%emt 0:00:31]} Rhb1+ {[%emt 0:00:13]} 41. Kc3 {[%emt 0:00:01]} Rh1 {[%emt 0:00:00]} 42. Kb4 {[%emt 0:00:01]} Rag1 {[%emt 0:00:08]} 43. Rff4 {[%emt 0:00:08]} Rg2 {[%emt 0:00:05]} 44. Rh4 {[%emt 0:00:03]} Rgh2 {[%emt 0:00:19]} 45. Bf6 {[%emt 0:00:02]} Bf5 {[%emt 0:00:04]} 46. Rxh2 {[%emt 0:00:10]} Rxh2 {[%emt 0:00:02]} 47. Rh4 {[%emt 0:00:03]} Rf2 {[%emt 0:00:02]} 48. h7 {[%emt 0:00:16]} Bxh7 {[%emt 0:00:05]} 49. Bd4 {[%emt 0:00:07]} Rxc2 {[%emt 0:00:02]} 50. Rxh7 {[%emt 0:00:03]} 1-0

[Event "CCT Chessable Masters Place D-II 2024"]
[Site "Online"]
[Date "2024.02.01"]
[Round "1"]
[White "Lysyj, Igor"]
[Black "Malakhov, Vladimir"]
[Result "1-0"]
[ECO "D12"]
[WhiteElo "2589"]
[BlackElo "2648"]
[Annotator "ChessBase"]
[PlyCount "123"]
[EventDate "2024.01.12"]
[EventType "k.o."]
[EventCountry "NET"]
[SourceTitle "playchess.com"]
[Source "ChessBase"]
[SourceQuality "1"]
[TimeControl "600+2"]

1. d4 {[%emt 0:00:06]} d5 {[%emt 0:00:05]} 2. c4 {[%emt 0:00:03]} c6 {[%emt 0:00:01]} 3. Nf3 {[%emt 0:00:02]} Nf6 {[%emt 0:00:02]} 4. e3 {[%emt 0:00:02]} Bf5 {[%emt 0:00:02]} 5. Nc3 {[%emt 0:00:01]} e6 {[%emt 0:00:02]} 6. Nh4 {[%emt 0:00:02]} Bg6 {[%emt 0:00:01]} 7. Nxg6 {[%emt 0:00:02]} hxg6 {[%emt 0:00:02]} 8. Bd2 {[%emt 0:00:00]} Nbd7 {[%emt 0:00:09]} 9. cxd5 {[%emt 0:00:03]} exd5 {[%emt 0:00:13]} 10. Qc2 {[%emt 0:00:03]} Bd6 {[%emt 0:00:13]} 11. O-O-O {[%emt 0:00:07]} Qe7 {[%emt 0:01:28]} 12. Bd3 {[%emt 0:00:27]} O-O-O {[%emt 0:00:02]} 13. h3 {[%emt 0:00:14]} Kb8 {[%emt 0:00:02]} 14. Kb1 {[%emt 0:00:07]} Rhe8 {[%emt 0:00:06]} 15. f3 {[%emt 0:00:05]} Nb6 {[%emt 0:01:22]} 16. Bc1 {[%emt 0:00:16]} Qc7 {[%emt 0:00:35]} 17. Rhe1 {[%emt 0:00:54]} Re7 {[%emt 0:00:07]} 18. g4 {[%emt 0:00:26]} Rde8 {[%emt 0:00:15]} 19. Qg2 {[%emt 0:00:23]} g5 {[%emt 0:00:26]} 20. e4 {[%emt 0:00:15]} Bf4 {[%emt 0:00:21]} 21. e5 {[%emt 0:00:03]} Bxc1 {[%emt 0:00:01]} 22. Rxc1 {[%emt 0:00:03]} a6 {[%emt 0:00:53]} 23. Qd2 {[%emt 0:01:50]} Nfd7 {[%emt 0:00:03]} 24. a4 {[%emt 0:00:02]} f6 {[%emt 0:00:24]} 25. exf6 {[%emt 0:00:28]} Rxe1 {[%emt 0:00:11]} 26. Rxe1 {[%emt 0:00:04]} Rxe1+ {[%emt 0:00:01]} 27. Qxe1 {[%emt 0:00:01]} Nxf6 {[%emt 0:00:18]} 28. a5 {[%emt 0:00:49]} Nc8 {[%emt 0:01:24]} 29. Na4 {[%emt 0:00:13]} Qf4 {[%emt 0:00:24]} 30. Qb4 {[%emt 0:00:17]} Ka7 {[%emt 0:01:11]} 31. Nc5 {[%emt 0:01:26]} Qc7 {[%emt 0:00:02]} 32. Qd2 {[%emt 0:00:29]} Nd6 {[%emt 0:00:05]} 33. Ne6 {[%emt 0:00:04]} Qe7 {[%emt 0:00:04]} 34. Nxg5 {[%emt 0:00:01]} Nc4 {[%emt 0:00:02]} 35. Bxc4 {[%emt 0:00:03]} dxc4 {[%emt 0:00:01]} 36. Ne4 {[%emt 0:00:40]} Nxe4 {[%emt 0:00:01]} 37. Qe3 {[%emt 0:00:01]} Qb4 {[%emt 0:00:11]} 38. fxe4 {[%emt 0:00:03]} Qxa5 {[%emt 0:00:05]} 39. e5 {[%emt 0:00:01]} Qa4 {[%emt 0:00:15]} 40. Kc1 {[%emt 0:00:26]} Qa1+ {[%emt 0:00:02]} 41. Kc2 {[%emt 0:00:01]} Qa4+ {[%emt 0:00:01]} 42. Kd2 {[%emt 0:00:00]} Qa5+ {[%emt 0:00:02]} 43. Ke2 {[%emt 0:00:04]} Qb5 {[%emt 0:00:01]} 44. d5+ {[%emt 0:00:18]} c5 {[%emt 0:00:03]} 45. Qc3 {[%emt 0:00:03]} Qe8 {[%emt 0:00:03]} 46. e6 {[%emt 0:00:02]} b5 {[%emt 0:00:01]} 47. Qxg7+ {[%emt 0:00:03]} Kb6 {[%emt 0:00:02]} 48. Qe5 {[%emt 0:00:02]} Qg6 {[%emt 0:00:01]} 49. d6 {[%emt 0:00:02]} Qd3+ {[%emt 0:00:02]} 50. Kf2 {[%emt 0:00:00]} c3 {[%emt 0:00:02]} 51. bxc3 {[%emt 0:00:02]} Qd2+ {[%emt 0:00:03]} 52. Kg3 {[%emt 0:00:01]} Qd3+ {[%emt 0:00:01]} 53. Kh4 {[%emt 0:00:03]} Qh7+ {[%emt 0:00:00]} 54. Kg5 {[%emt 0:00:02]} Qg8+ {[%emt 0:00:01]} 55. Kh5 {[%emt 0:00:01]} Qh7+ {[%emt 0:00:01]} 56. Kg5 {[%emt 0:00:01]} Qg8+ {[%emt 0:00:01]} 57. Kh6 {[%emt 0:00:01]} Qf8+ {[%emt 0:00:01]} 58. Kh7 {[%emt 0:00:00]} b4 {[%emt 0:00:02]} 59. cxb4 {[%emt 0:00:02]} cxb4 {[%emt 0:00:00]} 60. e7 {[%emt 0:00:02]} Qe8 {[%emt 0:00:01]} 61. Kh6 {[%emt 0:00:04]} b3 {[%emt 0:00:02]} 62. d7 {[%emt 0:00:01]} 1-0

[Event "CCT Chessable Masters Place D-II 2024"]
[Site "Online"]
[Date "2024.02.01"]
[Round "1"]
[White "Sethu Madhav Upadhyayula"]
[Black "Grischuk, Alexander"]
[Result "1-0"]
[ECO "C65"]
[WhiteElo "1502"]
[BlackElo "2732"]
[Annotator "TA"]
[PlyCount "65"]
[EventDate "2024.01.12"]
[EventType "k.o."]
[EventCountry "NET"]
[SourceTitle "playchess.com"]
[Source "ChessBase"]
[SourceQuality "1"]
[TimeControl "600+2"]

{[%evp 11,65,17,18,11,25,0,0,0,18,0,12,12,2,12,23,0,0,25,45,23,33,25,21,33,111,115,104,108,117,115,122,121,211,83,304,292,310,287,291,288,390,286,505,527,569,558,706,645,719,673,848,833,1694,1711,3664,3395]} 1. e4 {[%emt 0:00:06]} e5 {[%emt 0:00:04]} 2. Nf3 {[%emt 0:00:03]} Nc6 {[%emt 0:00:01]} 3. Bb5 {[%emt 0:00:02]} Nf6 {[%emt 0:00:01]} 4. d3 {[%emt 0:00:01]} Bc5 {[%emt 0:00:02]} 5. O-O {[%emt 0:00:01]} d6 {[%emt 0:00:12]} 6. c3 {[%emt 0:00:12]} O-O {[%emt 0:00:01]} 7. Re1 {[%emt 0:00:01]} Bb6 {[%emt 0:00:15]} 8. a4 {[%emt 0:00:09]} Ne7 {[%emt 0:00:41]} 9. d4 {[%emt 0:00:22] a5 is the strong threat. The position is equal.} c6 {[%emt 0:00:23]} 10. Bf1 {[%emt 0:00:22]} Ng6 {[%emt 0:00:29]} 11. Nbd2 {[%emt 0:00:16]} h6 {[%emt 0:00:49]} 12. Qc2 {[%emt 0:00:09]} Be6 {[%emt 0:00:47]} 13. b4 {[%emt 0:00:31]} a5 {[%emt 0:00:13]} 14. bxa5 {[%emt 0:02:24]} Rxa5 {[%emt 0:01:15]} 15. Ba3 {[%emt 0:00:07]} Re8 {[%emt 0:00:04]} 16. Rab1 {[%emt 0:00:34][%cal Oa3d6]} d5 {[%emt 0:01:04]} 17. exd5 {[%emt 0:00:31]} (17. Nxe5 Nxe5 18. Bb4 (18. dxe5 $2 Ng4 $19) 18... Nc4 19. Nxc4 dxc4 $14) 17... Bxd5 {[%emt 0:00:21] [#]} (17... cxd5 $14 18. Bb4 (18. Nxe5 Nxe5 19. Rxe5 Bc7 $11) (18. dxe5 Ng4 $11) 18... Ra8 19. Nxe5 Nxe5 20. Rxe5 (20. dxe5 Ng4 $15) 20... Bc7) 18. Nc4 $1 $16 {[%emt 0:00:30]} (18. Nxe5 $2 Nxe5 19. Re2 (19. Rxe5 $2 Rxe5 20. dxe5 Ng4 $19) (19. dxe5 $2 Ng4 $19) 19... Ned7 20. Rxe8+ Qxe8 $19) (18. dxe5 Ng4 19. Ne4 Bxe4 (19... N4xe5 20. Nxe5 Rxe5 21. Ng3 $11) (19... N6xe5 20. Nd4 $15) 20. Rxe4 Nxf2 $17 (20... Bxf2+ $2 21. Kh1 $18)) 18... Bxc4 {[%emt 0:00:24]} 19. Bxc4 {[%emt 0:00:02]} e4 {[%emt 0:00:01]} 20. Nd2 {[%emt 0:00:41][%cal Oc2b3,Bf3d2,Bd2f1,Bf1e3][%mdl 32] Black must now prevent Qb3!} Bc7 {[%emt 0:00:08]} 21. Rxb7 {[%emt 0:00:50][%cal Og2g3] Hoping for g3!} (21. Nxe4 Rxe4 22. Rxe4 Nxe4 23. Qxe4 Rxa4 $14) 21... Qc8 {[%emt 0:02:16] [#]} (21... Nf4 $16 {was worth a try.}) 22. Qb3 {[%emt 0:00:17]} (22. Bxf7+ $1 $18 {is more deadly.} Kxf7 23. Qb3+ Nd5 (23... Rd5 $2 24. Bd6 $18) 24. Bd6 (24. Nxe4 Kg8 $11)) 22... Rd5 $2 {[%emt 0:00:08] This move loses the game for Black.} 23. Bxd5 $18 {[%emt 0:00:55]} cxd5 {[%emt 0:00:00]} 24. Nf1 {[%emt 0:00:24]} Nf4 {[%emt 0:00:07]} 25. Ne3 {[%emt 0:00:21]} Ba5 {[%emt 0:00:45]} 26. Bc5 {[%emt 0:00:22]} Qe6 $2 {[%emt 0:00:11]} (26... Bxc3 27. Rb1 (27. Qxc3 Qxb7 28. h3 Ra8 $11) 27... Qe6) 27. Bb6 {[%emt 0:00:15] White is clearly winning.} Nd3 {[%emt 0:00:06]} 28. Rf1 {[%emt 0:00:02]} Bxb6 {[%emt 0:00:07]} 29. Rxb6 {[%emt 0:00:02]} Qc8 {[%emt 0:00:01]} 30. a5 {[%emt 0:00:05][%cal Ba4a5,Ba5a6][%mdl 32]} Ng4 {[%emt 0:00:03]} 31. a6 {[%emt 0:00:09]} Nxe3 {[%emt 0:00:03]} 32. fxe3 {[%emt 0:00:01][%cal Oa6a7] a7! would now be deadly.} Qc7 {[%emt 0:00:01]} 33. Rb7 {[%emt 0:00:03] Weighted Error Value: White=0.15 (very precise) /Black=0.57.  Loses game:     	---       	Black=1      Mistake:       	White=1     	Black=3      Inaccurate:     	---       	Black=1      OK:         	White=9     	Black=7      Best:        	White=2     	Black=1      Strong:       	White=1     	---} 1-0